fUST/lending_fUST_20240112
["ID","MTS","AMOUNT","RATE_DAILY","PERIOD"]
[311368795,1705069845858,-1433.9,0.00022465,2]
[311368797,1705069845867,-500.0,0.00022465,2]
[311368799,1705069845877,-500.0,0.00022465,2]
[311368801,1705069845886,-500.0,0.00022465,2]
[311368803,1705069845895,-1199.61,0.00022465,2]
[311368804,1705069845905,-316.83571165,0.00022465,2]
[311368806,1705069845914,-637.19,0.00022465,2]
[311368808,1705069845923,-501.332857,0.00022465,2]
[311368810,1705069845932,-500.0,0.00022465,2]
[311368812,1705069845941,-500.0,0.00022465,2]
[311368814,1705069845950,-715.99,0.00022465,2]
[311368816,1705069845961,-2643.73,0.00022465,2]
[311368817,1705069845972,-500.0,0.00022465,2]
[311368819,1705069845981,-14893.19,0.00022465,2]
[311368821,1705069845992,-500.0,0.00022465,2]
[311368823,1705069846001,-6822.53,0.00022465,2]
[311368825,1705069846010,-500.0,0.00022465,2]
[311368827,1705069846019,-1656.17,0.00022465,2]
[311368828,1705069846028,-500.0,0.00022465,2]
[311368830,1705069846038,-500.0,0.00022465,2]
[311368832,1705069846047,-500.0,0.00022465,2]
[311368834,1705069846056,-2141.44,0.00022465,2]
[311368836,1705069846065,-3311.96,0.00022465,2]
[311368838,1705069846075,-500.0,0.00022465,2]
[311368840,1705069846084,-635.06,0.00022465,2]
[311368842,1705069846093,-500.0,0.00022465,2]
[311368845,1705069846102,-2873.9,0.00022465,2]
[311368847,1705069846111,-500.0,0.00022465,2]
[311368849,1705069846120,-500.0,0.00022465,2]
[311368851,1705069846129,-1581.89,0.00022465,2]
[311368853,1705069846138,-500.0,0.00022465,2]
[311368855,1705069846147,-500.0,0.00022465,2]
[311368857,1705069846156,-500.0,0.00022465,2]
[311368858,1705069846165,-500.0,0.00022465,2]
[311368860,1705069846174,-925.3,0.00022465,2]
[311368862,1705069846183,-500.0,0.00022465,2]
[311368864,1705069846192,-500.0,0.00022465,2]
[311368867,1705069846200,-519.28,0.00022465,2]
[311368870,1705069846211,-500.0,0.00022465,2]
[311368872,1705069846221,-500.0,0.00022465,2]
[311368874,1705069846231,-500.0,0.00022465,2]
[311368876,1705069846241,-500.0,0.00022636,2]
[311368878,1705069846253,-500.0,0.00022636,2]
[311368880,1705069846262,-500.0,0.00022636,2]
[311368882,1705069846271,-500.0,0.00022636,2]
[311368884,1705069846280,-500.0,0.00022636,2]
[311368885,1705069846290,-500.0,0.00022636,2]
[311368887,1705069846299,-500.0,0.00022636,2]
[311368889,1705069846309,-500.0,0.00022636,2]
[311368891,1705069846318,-500.0,0.00022636,2]
[311368893,1705069846327,-500.0,0.00022636,2]
[311368895,1705069846336,-500.0,0.00022636,2]
[311368897,1705069846345,-500.0,0.00022636,2]
[311368899,1705069846354,-500.0,0.00022636,2]
[311368900,1705069846363,-500.0,0.00022636,2]
[311368902,1705069846372,-500.0,0.00022636,2]
[311368904,1705069846381,-632.64408372,0.00022636,2]
[311368906,1705069846390,-440.57452741,0.00022636,2]
[311368908,1705069846403,-59.42547259,0.00022636,2]
[311368910,1705069846412,-500.0,0.00022636,2]
[311368912,1705069846422,-500.0,0.00022636,2]
[311368914,1705069846431,-500.0,0.00022636,2]
[311368915,1705069846440,-500.0,0.00022636,2]
[311368917,1705069846449,-1089.12,0.00022636,2]
[311368919,1705069846458,-796.57,0.00022636,2]
[311368921,1705069846470,-500.0,0.00022636,2]
[311368923,1705069846480,-847.94,0.00022636,2]
[311368925,1705069846489,-500.0,0.00022636,2]
[311368927,1705069846499,-507.5546075,0.00022636,2]
[311368929,1705069846507,-500.0,0.00022636,2]
[311368930,1705069846517,-500.0,0.00022636,2]
[311368932,1705069846527,-1032.57,0.00022636,2]
[311368934,1705069846536,-500.0,0.00022636,2]
[311368936,1705069846545,-516.28,0.00022636,2]
[311368938,1705069846558,-500.0,0.00022636,2]
[311368940,1705069846567,-500.0,0.00022636,2]
[311368942,1705069846576,-500.0,0.00022636,2]
[311368944,1705069846586,-500.0,0.00022636,2]
[311368946,1705069846595,-500.0,0.00022636,2]
[311368948,1705069846603,-500.0,0.00022636,2]
[311368950,1705069846613,-503.61309405,0.00022636,2]
[311368951,1705069846622,-500.0,0.00022636,2]
[311368953,1705069846631,-500.0,0.00022636,2]
[311368955,1705069846642,-596.79,0.00022636,2]
[311368957,1705069846651,-585.62,0.00022636,2]
[311368959,1705069846660,-404.20160165,0.00022636,2]
[311368961,1705069846669,-500.0,0.00022738,2]
[311368963,1705069846678,-500.0,0.00022738,2]
[311368964,1705069846688,-500.0,0.00022738,2]
[311368966,1705069846697,-558.17684392,0.00022738,2]
[311368968,1705069846707,-500.0,0.00022738,2]
[311368970,1705069846718,-509.87968915,0.00022738,2]
[311368973,1705069846728,-500.0,0.00022738,2]
[311368976,1705069846737,-506.17830102,0.00022738,2]
[311368978,1705069846746,-500.0,0.00022738,2]
[311368980,1705069846755,-500.0,0.00022738,2]
[311368982,1705069846764,-500.0,0.00022738,2]
[311368983,1705069846774,-398.56874292,0.00022738,2]
[311368985,1705069846783,-500.0,0.00022738,2]
[311368987,1705069846792,-500.0,0.00022738,2]
[311368989,1705069846801,-500.0,0.00022738,2]
[311368991,1705069846810,-500.0,0.00022738,2]
[311368993,1705069846818,-500.0,0.00022738,2]
[311368995,1705069846828,-500.0,0.00022738,2]
[311368998,1705069846836,-500.0,0.00022738,2]
[311369000,1705069846845,-500.0,0.00022738,2]
[311369003,1705069846855,-500.0,0.00022739,2]
[311369006,1705069846864,-500.0,0.00022739,2]
[311369009,1705069846873,-794.15,0.00022739,2]
[311369011,1705069846883,-500.0,0.00022739,2]
[311369014,1705069846892,-500.0,0.00022739,2]
[311369016,1705069846901,-500.0,0.00022739,2]
[311369018,1705069846910,-500.0,0.00022739,2]
[311369020,1705069846919,-500.0,0.00022739,2]
[311369022,1705069846928,-500.0,0.00022739,2]
[311369023,1705069846937,-515.13168903,0.00022739,2]
[311369025,1705069846946,-500.0,0.00022739,2]
[311369027,1705069846954,-500.0,0.00022739,2]
[311369029,1705069846965,-500.0,0.00022739,2]
[311369031,1705069846974,-500.0,0.00022739,2]
[311369033,1705069846983,-715.49,0.00022739,2]
[311369034,1705069846992,-500.0,0.00022739,2]
[311369035,1705069847001,-839.87,0.00022739,2]
[311369036,1705069847010,-500.0,0.00022739,2]
[311369037,1705069847019,-1433.9,0.00022739,2]
[311369038,1705069847028,-500.0,0.00022739,2]
[311369039,1705069847036,-317.2237177,0.00022739,2]
[311369040,1705069847045,-500.0,0.00022739,2]
[311369041,1705069847054,-1199.61,0.00022739,2]
[311369042,1705069847062,-637.19,0.00022739,2]
[311369043,1705069847071,-500.0,0.00022739,2]
[311369044,1705069847080,-500.0,0.00022739,2]
[311369045,1705069847089,-715.99,0.00022739,2]
[311369046,1705069847098,-2643.73,0.00022739,2]
[311369047,1705069847107,-568.3886669,0.00022739,2]
[311369048,1705069847115,-14893.19,0.00022739,2]
[311369049,1705069847124,-6822.53,0.00022739,2]
[311369050,1705069847133,-500.0,0.00022739,2]
[311369051,1705069847142,-1656.17,0.00022739,2]
[311369052,1705069847151,-500.0,0.00022739,2]
[311369053,1705069847160,-500.0,0.00022739,2]
[311369054,1705069847168,-2141.44,0.00022739,2]
[311369055,1705069847178,-3311.96,0.00022739,2]
[311369056,1705069847186,-500.0,0.00022739,2]
[311369057,1705069847195,-635.06,0.00022739,2]
[311369058,1705069847204,-500.0,0.00022739,2]
[311369059,1705069847215,-2873.9,0.00022739,2]
[311369060,1705069847224,-500.0,0.00022739,2]
[311369061,1705069847233,-500.0,0.00022739,2]
[311369062,1705069847242,-1581.89,0.00022739,2]
[311369063,1705069847251,-230.40967336,0.00022739,2]
[311369064,1705069847260,-500.0,0.00022739,2]
[311369065,1705069847269,-500.0,0.00022739,2]
[311369066,1705069847277,-421.55727498,0.00022739,2]
[311369067,1705069847286,-925.3,0.00022739,2]
[311369068,1705069847294,-500.0,0.00022739,2]
[311369069,1705069847303,-500.0,0.00022739,2]
[311369070,1705069847312,-519.28,0.00022739,2]
[311369071,1705069847321,-500.0,0.00022739,2]
[311369072,1705069847329,-500.0,0.00022739,2]
[311369073,1705069847338,-500.0,0.00022739,2]
[311369074,1705069847347,-500.0,0.0002291,2]
[311369075,1705069847356,-500.0,0.0002291,2]
[311369076,1705069847365,-500.0,0.0002291,2]
[311369077,1705069847374,-358.55140645,0.0002291,2]
[311369079,1705069847383,-500.0,0.0002291,2]
[311369080,1705069847393,-500.0,0.0002291,2]
[311369081,1705069847402,-500.0,0.0002291,2]
[311369083,1705069847410,-500.0,0.0002291,2]
[311369084,1705069847419,-500.0,0.0002291,2]
[311369086,1705069847428,-500.0,0.0002291,2]
[311369087,1705069847437,-300.0,0.0002291,2]
[311369088,1705069847446,-351.97873443,0.0002291,2]
[311369090,1705069847454,-500.0,0.0002291,2]
[311369092,1705069847465,-500.0,0.0002291,2]
[311369094,1705069847474,-500.0,0.0002291,2]
[311369096,1705069847483,-500.0,0.0002291,2]
[311369098,1705069847492,-1089.12,0.0002291,2]
[311369100,1705069847501,-796.57,0.0002291,2]
[311369102,1705069847510,-500.0,0.0002291,2]
[311369104,1705069847520,-847.94,0.0002291,2]
[311369106,1705069847529,-500.0,0.0002291,2]
[311369116,1705069847618,-500.0,0.0002291,2]
[311369118,1705069847628,-500.0,0.0002291,2]
[311369120,1705069847637,-1032.57,0.0002291,2]
[311369122,1705069847647,-500.0,0.0002291,2]
[311369124,1705069847656,-516.28,0.0002291,2]
[311369126,1705069847670,-500.0,0.0002291,2]
[311369128,1705069847680,-500.0,0.0002291,2]
[311369130,1705069847689,-500.0,0.0002291,2]
[311369132,1705069847699,-500.0,0.0002291,2]
[311369134,1705069847712,-500.0,0.0002291,2]
[311369136,1705069847723,-500.0,0.0002291,2]
[311369138,1705069847733,-596.79,0.0002291,2]
[311369140,1705069847744,-500.0,0.00022912,2]
[311369142,1705069847753,-500.0,0.00022912,2]
[311369144,1705069847763,-166.666666,0.00022944,2]
[311369146,1705069847772,-2093.76186828,0.00023,2]
[311369148,1705069847782,-9924.74397112,0.00023,2]
[311369150,1705069847791,-500.0,0.00023011,2]
[311369152,1705069847800,-500.0,0.00023012,2]
[311369154,1705069847810,-500.0,0.00023012,2]
[311369156,1705069847819,-500.0,0.00023012,2]
[311369158,1705069847828,-500.0,0.00023012,2]
[311369160,1705069847837,-500.0,0.00023012,2]
[311369162,1705069847846,-500.0,0.00023012,2]
[311369164,1705069847855,-647.84778183,0.00023012,2]
[311369166,1705069847864,-500.0,0.00023012,2]
[311369168,1705069847873,-500.0,0.00023012,2]
[311369170,1705069847882,-500.0,0.00023012,2]
[311369172,1705069847891,-500.0,0.00023012,2]
[311369173,1705069847900,-500.0,0.00023012,2]
[311369176,1705069847910,-500.0,0.00023013,2]
[311369178,1705069847919,-500.0,0.00023013,2]
[311369180,1705069847929,-794.15,0.00023013,2]
[311369182,1705069847938,-489.86771307,0.00023013,2]
[311369183,1705069847947,-500.0,0.00023013,2]
[311369185,1705069847958,-500.0,0.00023013,2]
[311369187,1705069847970,-500.0,0.00023013,2]
[311369189,1705069847980,-500.0,0.00023013,2]
[311369191,1705069847990,-500.0,0.00023013,2]
[311369193,1705069848001,-500.0,0.00023013,2]
[311369195,1705069848011,-500.0,0.00023013,2]
[311369197,1705069848021,-500.0,0.00023013,2]
[311369199,1705069848032,-500.0,0.00023013,2]
[311369201,1705069848042,-715.49,0.00023013,2]
[311369203,1705069848053,-500.0,0.00023013,2]
[311369205,1705069848062,-839.87,0.00023013,2]
[311369207,1705069848073,-333.22890279,0.00023013,2]
[311369209,1705069848083,-1433.9,0.00023013,2]
[311369211,1705069848092,-500.0,0.00023013,2]
[311369213,1705069848102,-500.0,0.00023013,2]
[311369215,1705069848112,-1199.61,0.00023013,2]
[311369217,1705069848121,-637.19,0.00023013,2]
[311369219,1705069848130,-500.0,0.00023013,2]
[311369221,1705069848139,-715.99,0.00023013,2]
[311369223,1705069848148,-2643.73,0.00023013,2]
[311369225,1705069848157,-14893.19,0.00023013,2]
[311369227,1705069848168,-6822.53,0.00023013,2]
[311369229,1705069848177,-1656.17,0.00023013,2]
[311369231,1705069848186,-500.0,0.00023013,2]
[311369233,1705069848195,-500.0,0.00023013,2]
[311369235,1705069848206,-2141.44,0.00023013,2]
[311369237,1705069848219,-3311.96,0.00023013,2]
[311369239,1705069848228,-500.0,0.00023013,2]
[311369241,1705069848238,-635.06,0.00023013,2]
[311369243,1705069848248,-500.0,0.00023013,2]
[311369245,1705069848258,-2873.9,0.00023013,2]
[311369247,1705069848267,-500.0,0.00023013,2]
[311369249,1705069848277,-225.06263195,0.00023013,2]
[311369250,1705069848286,-1581.89,0.00023013,2]
[311369252,1705069848296,-500.0,0.00023013,2]
[311369254,1705069848306,-500.0,0.00023013,2]
[311369256,1705069848317,-925.3,0.00023013,2]
[311369258,1705069848328,-221.44410943,0.00023013,2]
[311369260,1705069848338,-500.0,0.00023013,2]
[311369262,1705069848348,-519.28,0.00023013,2]
[311369264,1705069848359,-500.0,0.00023013,2]
[311369266,1705069848369,-500.0,0.00023013,2]
[311369268,1705069848380,-500.0,0.00023013,2]
[311369270,1705069848391,-500.0,0.00023184,2]
[311369272,1705069848401,-500.0,0.00023184,2]
[311369274,1705069848411,-500.0,0.00023184,2]
[311369276,1705069848421,-316.15933812,0.00023184,2]
[311369278,1705069848432,-500.0,0.00023184,2]
[311369280,1705069848442,-500.0,0.00023184,2]
[311369282,1705069848454,-500.0,0.00023184,2]
[311369284,1705069848465,-500.0,0.00023184,2]
[311369285,1705069848477,-500.0,0.00023184,2]
[311369287,1705069848488,-500.0,0.00023184,2]
[311369289,1705069848498,-500.0,0.00023184,2]
[311369291,1705069848509,-500.0,0.00023184,2]
[311369293,1705069848521,-500.0,0.00023184,2]
[311369295,1705069848532,-1089.12,0.00023184,2]
[311369297,1705069848542,-796.57,0.00023184,2]
[311369299,1705069848553,-500.0,0.00023184,2]
[311369301,1705069848564,-847.94,0.00023184,2]
[311369303,1705069848574,-500.0,0.00023184,2]
[311369305,1705069848583,-500.0,0.00023184,2]
[311369307,1705069848593,-500.0,0.00023184,2]
[311369309,1705069848603,-1032.57,0.00023184,2]
[311369311,1705069848613,-342.90404747,0.00023184,2]
[311369313,1705069848624,-516.28,0.00023184,2]
[311369314,1705069848634,-500.0,0.00023184,2]
[311369317,1705069848644,-500.27922658,0.00023184,2]
[311369318,1705069848653,-500.0,0.00023184,2]
[311369320,1705069848663,-500.0,0.00023184,2]
[311369322,1705069848673,-596.79,0.00023184,2]
[311369324,1705069848682,-500.0,0.00023285,2]
[311369326,1705069848692,-272.45921452,0.00023286,2]
[311369328,1705069848702,-500.0,0.00023286,2]
[311369330,1705069848712,-500.0,0.00023286,2]
[311369332,1705069848721,-500.0,0.00023286,2]
[311369334,1705069848730,-500.0,0.00023286,2]
[311369336,1705069848739,-500.0,0.00023286,2]
[311369338,1705069848749,-500.0,0.00023286,2]
[311369340,1705069848758,-500.0,0.00023286,2]
[311369342,1705069848767,-500.0,0.00023286,2]
[311369344,1705069848775,-228.10849126,0.00023286,2]
[311369346,1705069848785,-500.0,0.00023286,2]
[311369348,1705069848794,-794.15,0.00023287,2]
[311369350,1705069848803,-500.0,0.00023287,2]
[311369352,1705069848812,-500.0,0.00023287,2]
[311369354,1705069848821,-500.0,0.00023287,2]
[311369356,1705069848831,-500.0,0.00023287,2]
[311369358,1705069848840,-500.0,0.00023287,2]
[311369360,1705069848849,-500.0,0.00023287,2]
[311369362,1705069848857,-330.22912445,0.00023287,2]
[311369364,1705069848867,-500.0,0.00023287,2]
[311369366,1705069848876,-500.0,0.00023287,2]
[311369368,1705069848885,-715.49,0.00023287,2]
[311369369,1705069848894,-500.0,0.00023287,2]
[311369371,1705069848903,-839.87,0.00023287,2]
[311369374,1705069848913,-1433.9,0.00023287,2]
[311369375,1705069848922,-504.63675004,0.00023287,2]
[311369378,1705069848932,-500.0,0.00023287,2]
[311369379,1705069848941,-1199.61,0.00023287,2]
[311369381,1705069848950,-637.19,0.00023287,2]
[311369383,1705069848960,-500.0,0.00023287,2]
[311369385,1705069848969,-715.99,0.00023287,2]
[311369387,1705069848978,-2643.73,0.00023287,2]
[311369389,1705069848987,-14893.19,0.00023287,2]
[311369391,1705069848996,-6822.53,0.00023287,2]
[311369393,1705069849005,-1656.17,0.00023287,2]
[311369395,1705069849014,-500.0,0.00023287,2]
[311369397,1705069849024,-500.0,0.00023287,2]
[311369399,1705069849033,-2141.44,0.00023287,2]
[311369401,1705069849042,-3311.96,0.00023287,2]
[311369403,1705069849051,-500.0,0.00023287,2]
[311369405,1705069849061,-635.06,0.00023287,2]
[311369407,1705069849070,-500.0,0.00023287,2]
[311369409,1705069849082,-2873.9,0.00023287,2]
[311369411,1705069849091,-500.0,0.00023287,2]
[311369413,1705069849100,-1581.89,0.00023287,2]
[311369415,1705069849109,-500.0,0.00023287,2]
[311369417,1705069849118,-500.0,0.00023287,2]
[311369419,1705069849128,-925.3,0.00023287,2]
[311369421,1705069849136,-500.0,0.00023287,2]
[311369423,1705069849146,-519.28,0.00023287,2]
[311369425,1705069849155,-500.0,0.00023287,2]
[311369427,1705069849164,-389.89239221,0.00023287,2]
[311369429,1705069849173,-166.666666,0.00023456,2]
[311369431,1705069849182,-500.0,0.00023458,2]
[311369433,1705069849191,-500.0,0.00023458,2]
[311369435,1705069849200,-500.0,0.00023458,2]
[311369437,1705069849209,-201.81793178,0.00023458,2]
[311369438,1705069849221,-500.0,0.00023458,2]
[311369440,1705069849231,-500.0,0.00023458,2]
[311369442,1705069849240,-500.0,0.00023458,2]
[311369444,1705069849249,-500.0,0.00023458,2]
[311369446,1705069849258,-500.0,0.00023458,2]
[311369456,1705069849336,-500.0,0.00023458,2]
[311369458,1705069849345,-500.0,0.00023458,2]
[311369459,1705069849354,-500.0,0.00023458,2]
[311369461,1705069849364,-1089.12,0.00023458,2]
[311369463,1705069849374,-796.57,0.00023458,2]
[311369465,1705069849383,-500.0,0.00023458,2]
[311369467,1705069849393,-847.94,0.00023458,2]
[311369469,1705069849402,-500.0,0.00023458,2]
[311369471,1705069849413,-500.0,0.00023458,2]
[311369473,1705069849423,-500.0,0.00023458,2]
[311369475,1705069849433,-1032.57,0.00023458,2]
[311369477,1705069849443,-516.28,0.00023458,2]
[311369479,1705069849452,-500.0,0.00023458,2]
[311369481,1705069849462,-500.0,0.00023458,2]
[311369483,1705069849474,-500.0,0.00023458,2]
[311369485,1705069849484,-596.79,0.00023458,2]
[311369487,1705069849495,-151.0,0.00023518,2]
[311369489,1705069849505,-500.0,0.0002356,2]
[311369491,1705069849514,-500.0,0.0002356,2]
[311369493,1705069849524,-500.0,0.0002356,2]
[311369495,1705069849537,-500.0,0.0002356,2]
[311369497,1705069849546,-500.0,0.0002356,2]
[311369499,1705069849555,-392.95669236,0.0002356,2]
[311369501,1705069849564,-500.0,0.0002356,2]
[311369503,1705069849574,-500.0,0.0002356,2]
[311369505,1705069849584,-532.92074997,0.0002356,2]
[311369507,1705069849593,-409.47377034,0.0002356,2]
[311369509,1705069849602,-794.15,0.00023561,2]
[311369511,1705069849611,-500.0,0.00023561,2]
[311369513,1705069849621,-500.0,0.00023561,2]
[311369515,1705069849631,-500.0,0.00023561,2]
[311369517,1705069849641,-500.0,0.00023561,2]
[311369519,1705069849650,-500.0,0.00023561,2]
[311369521,1705069849659,-500.0,0.00023561,2]
[311369523,1705069849668,-500.0,0.00023561,2]
[311369525,1705069849678,-715.49,0.00023561,2]
[311369527,1705069849687,-500.0,0.00023561,2]
[311369529,1705069849697,-839.87,0.00023561,2]
[311369531,1705069849706,-1433.9,0.00023561,2]
[311369533,1705069849716,-500.0,0.00023561,2]
[311369535,1705069849726,-1199.61,0.00023561,2]
[311369537,1705069849739,-637.19,0.00023561,2]
[311369539,1705069849752,-500.0,0.00023561,2]
[311369541,1705069849762,-715.99,0.00023561,2]
[311369543,1705069849771,-2643.73,0.00023561,2]
[311369545,1705069849781,-14893.19,0.00023561,2]
[311369547,1705069849791,-6822.53,0.00023561,2]
[311369549,1705069849801,-1656.17,0.00023561,2]
[311369551,1705069849811,-500.0,0.00023561,2]
[311369553,1705069849822,-500.0,0.00023561,2]
[311369555,1705069849832,-2141.44,0.00023561,2]
[311369557,1705069849842,-3311.96,0.00023561,2]
[311369559,1705069849852,-500.0,0.00023561,2]
[311369561,1705069849861,-635.06,0.00023561,2]
[311369563,1705069849870,-500.0,0.00023561,2]
[311369564,1705069849880,-2873.9,0.00023561,2]
[311369565,1705069849890,-500.0,0.00023561,2]
[311369566,1705069849900,-1581.89,0.00023561,2]
[311369567,1705069849910,-500.0,0.00023561,2]
[311369568,1705069849919,-500.0,0.00023561,2]
[311369569,1705069849929,-925.3,0.00023561,2]
[311369570,1705069849940,-500.0,0.00023561,2]
[311369571,1705069849950,-519.28,0.00023561,2]
[311369572,1705069849960,-500.0,0.00023561,2]
[311369573,1705069849978,-500.0,0.00023732,2]
[311369574,1705069849989,-500.0,0.00023732,2]
[311369575,1705069849999,-486.57270557,0.00023732,2]
[311369576,1705069850011,-500.0,0.00023732,2]
[311369577,1705069850021,-500.0,0.00023732,2]
[311369578,1705069850032,-500.0,0.00023732,2]
[311369580,1705069850044,-500.0,0.00023732,2]
[311369581,1705069850054,-500.0,0.00023732,2]
[311369582,1705069850064,-500.0,0.00023732,2]
[311369583,1705069850074,-500.0,0.00023732,2]
[311369585,1705069850084,-1089.12,0.00023732,2]
[311369587,1705069850094,-796.57,0.00023732,2]
[311369589,1705069850104,-500.0,0.00023732,2]
[311369591,1705069850115,-847.94,0.00023732,2]
[311369593,1705069850126,-500.0,0.00023732,2]
[311369595,1705069850136,-500.0,0.00023732,2]
[311369597,1705069850150,-500.0,0.00023732,2]
[311369599,1705069850161,-1032.57,0.00023732,2]
[311369601,1705069850172,-516.28,0.00023732,2]
[311369603,1705069850183,-500.0,0.00023732,2]
[311369605,1705069850193,-500.0,0.00023732,2]
[311369607,1705069850204,-428.04452194,0.00023732,2]
[311369609,1705069850221,-596.79,0.00023732,2]
[311369611,1705069850236,-500.0,0.00023834,2]
[311369612,1705069850247,-500.0,0.00023834,2]
[311369614,1705069850258,-500.0,0.00023834,2]
[311369616,1705069850268,-500.0,0.00023834,2]
[311369618,1705069850279,-500.0,0.00023834,2]
[311369620,1705069850290,-794.15,0.00023835,2]
[311369622,1705069850301,-500.0,0.00023835,2]
[311369624,1705069850313,-500.0,0.00023835,2]
[311369626,1705069850325,-500.0,0.00023835,2]
[311369628,1705069850336,-500.0,0.00023835,2]
[311369630,1705069850347,-500.0,0.00023835,2]
[311369632,1705069850360,-500.0,0.00023835,2]
[311369634,1705069850371,-500.0,0.00023835,2]
[311369636,1705069850382,-715.49,0.00023835,2]
[311369638,1705069850393,-500.0,0.00023835,2]
[311369640,1705069850404,-839.87,0.00023835,2]
[311369642,1705069850415,-1433.9,0.00023835,2]
[311369644,1705069850426,-500.0,0.00023835,2]
[311369646,1705069850437,-1199.61,0.00023835,2]
[311369648,1705069850448,-637.19,0.00023835,2]
[311369650,1705069850459,-500.0,0.00023835,2]
[311369652,1705069850484,-715.99,0.00023835,2]
[311369654,1705069850495,-2643.73,0.00023835,2]
[311369656,1705069850507,-14893.19,0.00023835,2]
[311369658,1705069850519,-6822.53,0.00023835,2]
[311369660,1705069850531,-1656.17,0.00023835,2]
[311369662,1705069850543,-500.0,0.00023835,2]
[311369664,1705069850554,-500.0,0.00023835,2]
[311369666,1705069850568,-2141.44,0.00023835,2]
[311369668,1705069850583,-3311.96,0.00023835,2]
[311369670,1705069850595,-500.0,0.00023835,2]
[311369672,1705069850606,-635.06,0.00023835,2]
[311369674,1705069850617,-500.0,0.00023835,2]
[311369676,1705069850629,-2873.9,0.00023835,2]
[311369678,1705069850640,-500.0,0.00023835,2]
[311369680,1705069850651,-1581.89,0.00023835,2]
[311369682,1705069850662,-500.0,0.00023835,2]
[311369684,1705069850673,-500.0,0.00023835,2]
[311369686,1705069850684,-925.3,0.00023835,2]
[311369688,1705069850695,-500.0,0.00023835,2]
[311369690,1705069850706,-519.28,0.00023835,2]
[311369692,1705069850723,-500.0,0.00023835,2]
[311369694,1705069850734,-500.0,0.00023863,2]
[311369696,1705069850745,-343.49604143,0.00023916,2]
[311369698,1705069850756,-166.666666,0.00023969,2]
[311369700,1705069850766,-4005.78937176,0.00024,2]
[311369702,1705069850777,-500.0,0.00024006,2]
[311369704,1705069850787,-500.0,0.00024006,2]
[311369706,1705069850797,-416.2622589,0.00024006,2]
[311369708,1705069850808,-500.0,0.00024006,2]
[311369710,1705069850820,-500.0,0.00024006,2]
[311369712,1705069850830,-500.0,0.00024006,2]
[311369714,1705069850842,-500.0,0.00024006,2]
[311369716,1705069850852,-500.0,0.00024006,2]
[311369718,1705069850862,-1089.12,0.00024006,2]
[311369720,1705069850874,-796.57,0.00024006,2]
[311369722,1705069850884,-500.0,0.00024006,2]
[311369724,1705069850894,-847.94,0.00024006,2]
[311369726,1705069850904,-500.0,0.00024006,2]
[311369728,1705069850913,-500.0,0.00024006,2]
[311369730,1705069850923,-500.0,0.00024006,2]
[311369731,1705069850933,-1032.57,0.00024006,2]